fUSD/lending_fUSD_20241227
["ID","MTS","AMOUNT","RATE_DAILY","PERIOD"]
[346822196,1735306281740,-2009.88,0.00012246,2]
[346822197,1735306281750,-1284.54,0.00012246,2]
[346822198,1735306281759,-1355.51,0.00012246,2]
[346822199,1735306281769,-712.96,0.00012246,2]
[346822200,1735306281778,-500.0,0.00012246,2]
[346822201,1735306281787,-1788.12,0.00012246,2]
[346822202,1735306281796,-500.0,0.00012246,2]
[346822203,1735306281806,-500.0,0.00012246,2]
[346822204,1735306281822,-1426.29,0.00012246,2]
[346822205,1735306281831,-500.0,0.00012246,2]
[346822206,1735306281841,-500.0,0.00012246,2]
[346822207,1735306281851,-1009.88,0.00012246,2]
[346822208,1735306281866,-733.7,0.00012246,2]
[346822209,1735306281875,-801.44,0.00012246,2]
[346822210,1735306281885,-1638.26,0.00012246,2]
[346822211,1735306281895,-500.0,0.00012246,2]
[346822212,1735306281904,-2350.92,0.00012246,2]
[346822213,1735306281914,-818.97,0.00012246,2]
[346822214,1735306281923,-1203.41,0.00012246,2]
[346822215,1735306281932,-755.02,0.00012246,2]
[346822216,1735306281942,-1930.42,0.00012246,2]
[346822217,1735306281952,-558.68,0.00012246,2]
[346822218,1735306281962,-500.0,0.00012246,2]
[346822219,1735306281972,-500.0,0.00012246,2]
[346822220,1735306281981,-500.0,0.00012246,2]
[346822221,1735306281991,-1459.81,0.00012246,2]
[346822222,1735306282001,-1232.98,0.00012246,2]
[346822223,1735306282010,-500.0,0.00012246,2]
[346822224,1735306282021,-500.0,0.00012246,2]
[346822225,1735306282031,-500.0,0.00012246,2]
[346822226,1735306282041,-673.44,0.00012246,2]
[346822227,1735306282051,-1585.26,0.00012246,2]
[346822228,1735306282061,-500.0,0.00012246,2]
[346822229,1735306282076,-1370.82,0.00012246,2]
[346822230,1735306282086,-500.0,0.00012246,2]
[346822231,1735306282096,-500.0,0.00012246,2]
[346822232,1735306282106,-500.0,0.00012246,2]
[346822233,1735306282117,-1559.07,0.00012246,2]
[346822234,1735306282127,-1846.31,0.00012246,2]
[346822235,1735306282137,-500.0,0.00012246,2]
[346822236,1735306282149,-1268.23,0.00012246,2]
[346822237,1735306282160,-500.0,0.00012246,2]
[346822238,1735306282170,-525.68,0.00012246,2]
[346822239,1735306282180,-1732.51,0.00012246,2]
[346822240,1735306282193,-500.0,0.00012246,2]
[346822241,1735306282203,-1584.51,0.00012246,2]
[346822242,1735306282213,-500.0,0.00012246,2]
[346822243,1735306282223,-1387.83,0.00012246,2]
[346822244,1735306282234,-500.0,0.00012246,2]
[346822245,1735306282244,-1036.8,0.00012246,2]
[346822246,1735306282254,-1200.95,0.00012246,2]
[346822247,1735306282266,-772.84,0.00012246,2]
[346822248,1735306282277,-500.0,0.00012246,2]
[346822249,1735306282288,-500.0,0.00012246,2]
[346822250,1735306282299,-1951.33,0.00012246,2]
[346822251,1735306282308,-831.16,0.00012246,2]
[346822252,1735306282322,-2354.97,0.00012246,2]
[346822253,1735306282332,-1813.83,0.00012246,2]
[346822254,1735306282342,-500.0,0.00012246,2]
[346822255,1735306282352,-2962.28,0.00012246,2]
[346822256,1735306282361,-617.27,0.00012246,2]
[346822257,1735306282371,-1440.64,0.00012246,2]
[346822258,1735306282380,-500.0,0.00012246,2]
[346822259,1735306282389,-589.39,0.00012246,2]
[346822260,1735306282399,-500.0,0.00012246,2]
[346822261,1735306282408,-1657.07,0.00012246,2]
[346822262,1735306282418,-1499.91,0.00012246,2]
[346822263,1735306282428,-500.0,0.00012246,2]
[346822264,1735306282438,-1176.88,0.00012246,2]
[346822265,1735306282448,-599.1,0.00012246,2]
[346822266,1735306282457,-500.0,0.00012246,2]
[346822267,1735306282467,-809.61,0.00012246,2]
[346822268,1735306282476,-2428.12,0.00012246,2]
[346822269,1735306282487,-500.0,0.00012246,2]
[346822270,1735306282497,-530.43,0.00012246,2]
[346822271,1735306282506,-2648.89,0.00012246,2]
[346822272,1735306282516,-2177.18,0.00012246,2]
[346822273,1735306282526,-624.37,0.00012246,2]
[346822274,1735306282536,-936.43,0.00012246,2]
[346822275,1735306282546,-721.89,0.00012246,2]
[346822276,1735306282556,-850.76,0.00012246,2]
[346822277,1735306282569,-500.0,0.00012246,2]
[346822278,1735306282579,-2470.22,0.00012246,2]
[346822279,1735306282589,-2547.12,0.00012246,2]
[346822280,1735306282599,-1364.73,0.00012246,2]
[346822281,1735306282608,-500.0,0.00012246,2]
[346822282,1735306282618,-1859.01,0.00012246,2]
[346822283,1735306282627,-1393.79,0.00012246,2]
[346822284,1735306282637,-1425.52,0.00012246,2]
[346822285,1735306282647,-1175.76,0.00012246,2]
[346822286,1735306282657,-4303.17,0.00012246,2]
[346822287,1735306282667,-1324.06,0.00012246,2]
[346822288,1735306282676,-1404.23,0.00012246,2]
[346822289,1735306282686,-2214.01,0.00012246,2]
[346822290,1735306282695,-1835.97,0.00012246,2]
[346822291,1735306282705,-914.54,0.00012246,2]
[346822292,1735306282714,-1820.92,0.00012246,2]
[346822293,1735306282724,-1638.35,0.00012246,2]
[346822294,1735306282734,-1336.63,0.00012246,2]
[346822295,1735306282744,-3258.63,0.00012246,2]
[346822296,1735306282753,-609.54,0.00012246,2]
[346822297,1735306282762,-396.43,0.00012246,2]
[346822298,1735306282772,-500.0,0.00012246,2]
[346822299,1735306282782,-1316.49,0.00012246,2]
[346822300,1735306282791,-500.0,0.00012246,2]
[346822301,1735306282801,-2187.5,0.00012246,2]
[346822302,1735306282811,-3568.02,0.00012246,2]
[346822303,1735306282821,-2495.85,0.00012246,2]
[346822304,1735306282831,-793.06,0.00012246,2]
[346822305,1735306282840,-1460.1,0.00012246,2]
[346822306,1735306282850,-500.0,0.00012246,2]
[346822307,1735306282860,-1052.94,0.00012246,2]
[346822308,1735306282870,-1848.63,0.00012246,2]
[346822309,1735306282879,-1478.17,0.00012246,2]
[346822310,1735306282889,-502.6,0.00012246,2]
[346822311,1735306282898,-2934.1,0.00012246,2]
[346822312,1735306282908,-1442.54,0.00012246,2]
[346822313,1735306282918,-727.66,0.00012246,2]
[346822314,1735306282928,-1911.58,0.00012246,2]
[346822315,1735306282938,-500.0,0.00012246,2]
[346822316,1735306282948,-1772.68,0.00012246,2]
[346822317,1735306282957,-1435.43,0.00012246,2]
[346822318,1735306282966,-4352.17,0.00012246,2]
[346822319,1735306282976,-1436.46,0.00012246,2]
[346822320,1735306282985,-500.0,0.00012246,2]
[346822321,1735306282995,-629.13,0.00012246,2]
[346822322,1735306283005,-1154.2,0.00012246,2]
[346822323,1735306283014,-1437.23,0.00012246,2]
[346822324,1735306283024,-500.0,0.00012246,2]
[346822325,1735306283033,-4754.92,0.00012246,2]
[346822326,1735306283043,-573.93,0.00012246,2]
[346822327,1735306283052,-1234.74,0.00012246,2]
[346822328,1735306283063,-1851.47,0.00012246,2]
[346822329,1735306283072,-866.1,0.00012246,2]
[346822330,1735306283081,-501.42,0.00012246,2]
[346822331,1735306283091,-1534.43,0.00012246,2]
[346822332,1735306283101,-500.0,0.00012246,2]
[346822333,1735306283111,-500.0,0.00012246,2]
[346822334,1735306283120,-525.05,0.00012246,2]
[346822335,1735306283129,-500.0,0.00012246,2]
[346822336,1735306283139,-2144.85,0.00012246,2]
[346822337,1735306283147,-13768.66,0.00012246,2]
[346822338,1735306283156,-1092.31,0.00012246,2]
[346822339,1735306283165,-733.3,0.00012246,2]
[346822340,1735306283175,-1190.17,0.00012246,2]
[346822341,1735306283185,-2179.23,0.00012246,2]
[346822342,1735306283196,-563.88,0.00012246,2]
[346822343,1735306283206,-9077.24,0.00012246,2]
[346822344,1735306283216,-1598.52,0.00012246,2]
[346822345,1735306283227,-2434.04,0.00012246,2]
[346822346,1735306283237,-847.53,0.00012246,2]
[346822347,1735306283248,-151.69871502,0.00012246,2]
[346822348,1735306283258,-1541.53,0.00012246,2]
[346822349,1735306283268,-1263.16,0.00012246,2]
[346822350,1735306283279,-801.73,0.00012246,2]
[346822351,1735306283289,-1519.6,0.00012246,2]
[346822352,1735306283299,-435.05456916,0.00012246,2]
[346822353,1735306283308,-2003.5,0.00012246,2]
[346822354,1735306283322,-9585.5,0.00012246,2]
[346822355,1735306283331,-2051.05,0.00012246,2]
[346822356,1735306283342,-1215.87,0.00012246,2]
[346822357,1735306283352,-500.0,0.00012246,2]
[346822358,1735306283362,-1953.84,0.00012246,2]
[346822359,1735306283372,-2936.73,0.00012246,2]
[346822360,1735306283381,-500.0,0.00012246,2]
[346822361,1735306283391,-720.34,0.00012246,2]
[346822362,1735306283401,-2825.02,0.00012246,2]
[346822363,1735306283411,-2387.1,0.00012246,2]
[346822364,1735306283421,-1613.62,0.00012246,2]
[346822365,1735306283432,-1377.95,0.00012246,2]
[346822366,1735306283442,-3596.75,0.00012246,2]
[346822367,1735306283452,-878.93,0.00012246,2]
[346822368,1735306283463,-3008.73,0.00012246,2]
[346822369,1735306283472,-6366.49,0.00012246,2]
[346822370,1735306283482,-1512.13,0.00012246,2]
[346822371,1735306283492,-957.14,0.00012246,2]
[346822372,1735306283502,-500.0,0.00012246,2]
[346822373,1735306283512,-500.0,0.00012246,2]
[346822374,1735306283521,-500.0,0.00012246,2]
[346822375,1735306283532,-640.14,0.00012246,2]
[346822376,1735306283542,-837.16,0.00012246,2]
[346822377,1735306283551,-1881.5,0.00012246,2]
[346822378,1735306283562,-955.52,0.00012246,2]
[346822379,1735306283572,-3975.83,0.00012246,2]
[346822380,1735306283582,-500.0,0.00012246,2]
[346822381,1735306283592,-1747.85,0.00012246,2]
[346822382,1735306283602,-202.97539979,0.00012246,2]
[346822383,1735306283612,-2274.69,0.00012246,2]
[346822384,1735306283621,-500.0,0.00012246,2]
[346822385,1735306283631,-1535.14,0.00012246,2]
[346822386,1735306283641,-2145.35,0.00012246,2]
[346822387,1735306283651,-500.0,0.00012246,2]
[346822388,1735306283661,-857.84,0.00012246,2]
[346822389,1735306283672,-4799.02,0.00012246,2]
[346822390,1735306283682,-500.0,0.00012246,2]
[346822391,1735306283692,-1979.16,0.00012246,2]
[346822392,1735306283701,-1552.45,0.00012246,2]
[346822393,1735306283711,-966.6,0.00012246,2]
[346822394,1735306283721,-1013.34,0.00012246,2]
[346822395,1735306283730,-276.83355799,0.00012246,2]
[346822396,1735306283740,-500.0,0.00012246,2]
[346822397,1735306283750,-2897.7,0.00012246,2]
[346822398,1735306283759,-500.0,0.00012246,2]
[346822399,1735306283769,-500.0,0.00012246,2]
[346822400,1735306283779,-515.10893238,0.00012246,2]
[346822401,1735306283789,-2006.92,0.00012246,2]
[346822402,1735306283800,-500.0,0.00012246,2]
[346822403,1735306283810,-3076.9,0.00012246,2]
[346822404,1735306283821,-1045.07,0.00012246,2]
[346822405,1735306283831,-1637.15,0.00012246,2]
[346822406,1735306283841,-500.0,0.00012246,2]
[346822407,1735306283850,-1266.02,0.00012246,2]
[346822408,1735306283861,-3298.5,0.00012246,2]
[346822409,1735306283871,-383.12313626,0.00012246,2]
[346822410,1735306283881,-3559.92,0.00012246,2]
[346822411,1735306283891,-919.96,0.00012246,2]
[346822412,1735306283900,-500.0,0.00012246,2]
[346822413,1735306283911,-563.35,0.00012247,2]
[346822414,1735306283920,-437.22,0.00012247,2]
[346822415,1735306283930,-500.0,0.00012247,2]
[346822416,1735306283940,-636.32,0.00012247,2]
[346822417,1735306283949,-500.0,0.00012247,2]
[346822418,1735306283959,-500.0,0.00012247,2]
[346822419,1735306283969,-500.0,0.00012247,2]
[346822420,1735306283979,-500.0,0.00012247,2]
[346822421,1735306283988,-444.29358768,0.00012247,2]
[346822422,1735306283998,-500.0,0.00012247,2]
[346822423,1735306284008,-322.75432045,0.00012247,2]
[346822424,1735306284018,-516.49,0.00012247,2]
[346822425,1735306284037,-722.63,0.00012247,2]
[346822426,1735306284054,-992.85,0.00012247,2]
[346822427,1735306284064,-500.0,0.00012247,2]
[346822428,1735306284074,-504.85240761,0.00012247,2]
[346822429,1735306284083,-510.41,0.00012247,2]
[346822430,1735306284093,-909.19,0.00012247,2]
[346822431,1735306284103,-500.0,0.00012247,2]
[346822432,1735306284112,-871.78,0.00012247,2]
[346822433,1735306284122,-526.15,0.00012247,2]
[346822434,1735306284131,-500.0,0.00012247,2]
[346822435,1735306284141,-500.0,0.00012247,2]
[346822436,1735306284151,-633.92,0.00012247,2]
[346822437,1735306284161,-479.10382871,0.00012247,2]
[346822438,1735306284171,-500.0,0.00012247,2]
[346822439,1735306284180,-500.0,0.00012247,2]
[346822440,1735306284194,-500.0,0.00012247,2]
[346822441,1735306284203,-500.0,0.00012247,2]
[346822442,1735306284213,-1366.66,0.00012247,2]
[346822443,1735306284223,-1568.69,0.00012247,2]
[346822444,1735306284234,-1429.92,0.00012247,2]
[346822445,1735306284244,-604.69,0.00012247,2]
[346822446,1735306284440,-1728.67,0.00012247,2]
[346822447,1735306284459,-500.0,0.00012247,2]
[346822448,1735306284475,-500.0,0.00012247,2]
[346822449,1735306284485,-500.0,0.00012247,2]
[346822450,1735306284495,-500.0,0.00012247,2]
[346822451,1735306284505,-8270.08,0.00012247,2]
[346822452,1735306284515,-500.0,0.00012247,2]
[346822453,1735306284524,-500.0,0.00012247,2]
[346822454,1735306284533,-500.0,0.00012247,2]
[346822455,1735306284543,-2846.89,0.00012247,2]
[346822456,1735306284553,-2068.11,0.00012247,2]
[346822457,1735306284562,-500.0,0.00012247,2]
[346822458,1735306284576,-5045.96,0.00012247,2]
[346822459,1735306284585,-3968.81,0.00012247,2]
[346822460,1735306284595,-500.0,0.00012247,2]
[346822461,1735306284604,-3499.72,0.00012247,2]
[346822462,1735306284614,-500.0,0.00012247,2]
[346822463,1735306284623,-711.85,0.00012247,2]
[346822464,1735306284632,-24383.54,0.00012247,2]
[346822465,1735306284641,-889.93,0.00012247,2]
[346822466,1735306284651,-1414.6,0.00012247,2]
[346822467,1735306284660,-500.0,0.00012247,2]
[346822468,1735306284670,-1367.36,0.00012247,2]
[346822469,1735306284680,-1707.69,0.00012247,2]
[346822470,1735306284690,-14554.96,0.00012247,2]
[346822471,1735306284699,-1819.73,0.00012247,2]
[346822472,1735306284709,-500.0,0.00012247,2]
[346822473,1735306284718,-500.0,0.00012247,2]
[346822474,1735306284728,-1260.36,0.00012247,2]
[346822475,1735306284737,-500.0,0.00012247,2]
[346822476,1735306284746,-789.28,0.00012247,2]
[346822477,1735306284756,-2076.11,0.00012247,2]
[346822478,1735306284769,-1940.51,0.00012247,2]
[346822479,1735306284783,-500.0,0.00012247,2]
[346822480,1735306284792,-582.72,0.00012247,2]
[346822481,1735306284801,-701.52,0.00012247,2]
[346822482,1735306284811,-1683.42,0.00012247,2]
[346822483,1735306284823,-500.0,0.00012247,2]
[346822484,1735306284832,-500.0,0.00012247,2]
[346822485,1735306284842,-939.11,0.00012247,2]
[346822486,1735306284852,-1060.31,0.00012247,2]
[346822487,1735306284861,-702.23,0.00012247,2]
[346822488,1735306284871,-1884.63,0.00012247,2]
[346822489,1735306284881,-1875.64,0.00012247,2]
[346822490,1735306284890,-528.22,0.00012247,2]
[346822491,1735306284900,-2631.5,0.00012247,2]
[346822492,1735306284909,-342.1186019,0.00012247,2]
[346822493,1735306284919,-702.21,0.00012247,2]
[346822494,1735306284928,-901.63,0.00012247,2]
[346822495,1735306284939,-2072.97,0.00012247,2]
[346822496,1735306284949,-1703.99,0.00012247,2]
[346822497,1735306284958,-1353.5,0.00012247,2]
[346822498,1735306284968,-500.0,0.00012247,2]
[346822499,1735306284978,-1781.59,0.00012247,2]
[346822500,1735306284989,-742.42,0.00012247,2]
[346822501,1735306284998,-653.91,0.00012247,2]
[346822502,1735306285008,-798.31,0.00012247,2]
[346822503,1735306285018,-2581.0,0.00012247,2]
[346822504,1735306285027,-500.0,0.00012247,2]
[346822505,1735306285037,-500.0,0.00012247,2]
[346822506,1735306285047,-1852.4,0.00012247,2]
[346822507,1735306285057,-500.0,0.00012247,2]
[346822508,1735306285067,-500.0,0.00012247,2]
[346822509,1735306285077,-500.0,0.00012247,2]
[346822510,1735306285087,-893.35,0.00012247,2]
[346822511,1735306285098,-2117.12,0.00012247,2]
[346822512,1735306285109,-1561.34,0.00012247,2]
[346822513,1735306285121,-1191.99,0.00012247,2]
[346822514,1735306285131,-1486.12,0.00012247,2]
[346822515,1735306285142,-1280.4,0.00012247,2]
[346822516,1735306285152,-2058.65,0.00012247,2]
[346822517,1735306285163,-2670.13,0.00012247,2]
[346822518,1735306285175,-500.0,0.00012247,2]
[346822519,1735306285187,-839.4,0.00012247,2]
[346822520,1735306285198,-500.0,0.00012247,2]
[346822521,1735306285208,-500.0,0.00012247,2]
[346822522,1735306285219,-518.65,0.00012247,2]
[346822523,1735306285230,-1408.15,0.00012247,2]
[346822524,1735306285240,-877.95,0.00012247,2]
[346822525,1735306285249,-517.88,0.00012247,2]
[346822526,1735306285260,-500.0,0.00012247,2]
[346822527,1735306285269,-2862.18,0.00012247,2]
[346822528,1735306285279,-907.76,0.00012247,2]
[346822529,1735306285289,-1568.55,0.00012247,2]
[346822530,1735306285300,-2911.29,0.00012247,2]
[346822531,1735306285309,-674.4,0.00012247,2]
[346822532,1735306285321,-2077.6,0.00012247,2]
[346822533,1735306285330,-3405.53,0.00012247,2]
[346822534,1735306285340,-2791.45,0.00012247,2]
[346822535,1735306285351,-1960.94,0.00012247,2]
[346822536,1735306285363,-501.37,0.00012247,2]
[346822537,1735306285374,-1471.36,0.00012247,2]
[346822538,1735306285384,-2066.35,0.00012247,2]
[346822539,1735306285395,-607.81,0.00012247,2]
[346822540,1735306285405,-1487.03,0.00012247,2]
[346822541,1735306285415,-1538.23,0.00012247,2]
[346822542,1735306285424,-500.0,0.00012247,2]
[346822543,1735306285434,-3972.05,0.00012247,2]
[346822544,1735306285443,-5071.1,0.00012247,2]
[346822545,1735306285453,-1140.63,0.00012247,2]
[346822546,1735306285463,-3650.7,0.00012247,2]
[346822547,1735306285473,-549.8,0.00012247,2]
[346822548,1735306285483,-1276.18,0.00012247,2]
[346822549,1735306285493,-500.0,0.00012247,2]
[346822550,1735306285503,-3809.01,0.00012247,2]
[346822551,1735306285513,-1267.32,0.00012247,2]
[346822552,1735306285523,-20639.26,0.00012247,2]
[346822553,1735306285534,-1451.45,0.00012247,2]
[346822554,1735306285543,-1251.17,0.00012247,2]
[346822555,1735306285552,-6189.98,0.00012247,2]
[346822556,1735306285562,-3204.59,0.00012247,2]
[346822557,1735306285575,-1794.95,0.00012247,2]
[346822558,1735306285585,-4594.04,0.00012247,2]
[346822559,1735306285595,-863.22,0.00012247,2]
[346822560,1735306285605,-4907.67,0.00012247,2]
[346822561,1735306285615,-1280.94,0.00012247,2]
[346822562,1735306285625,-2552.57,0.00012247,2]
[346822563,1735306285635,-9143.35,0.00012247,2]
[346822564,1735306285645,-1125.65,0.00012247,2]
[346822565,1735306285655,-583.35,0.00012247,2]
[346822566,1735306285664,-996.77,0.00012247,2]
[346822567,1735306285674,-1328.72,0.00012247,2]
[346822568,1735306285684,-1157.95,0.00012247,2]
[346822569,1735306285694,-1578.52,0.00012247,2]
[346822570,1735306285704,-1605.7,0.00012247,2]
[346822571,1735306285714,-500.0,0.00012247,2]
[346822572,1735306285724,-500.0,0.00012247,2]
[346822573,1735306285733,-500.0,0.00012247,2]
[346822574,1735306285743,-500.0,0.00012247,2]
[346822575,1735306285753,-500.0,0.00012247,2]
[346822576,1735306285763,-4867.6,0.00012247,2]
[346822577,1735306285773,-901.36,0.00012247,2]
[346822578,1735306285782,-500.0,0.00012247,2]
[346822579,1735306285793,-743.5,0.00012247,2]
[346822580,1735306285803,-4713.74,0.00012247,2]
[346822581,1735306285813,-1521.59,0.00012247,2]
[346822582,1735306285825,-500.0,0.00012247,2]
[346822583,1735306285835,-500.0,0.00012247,2]
[346822584,1735306285845,-1367.42,0.00012247,2]
[346822585,1735306285854,-17898.06,0.00012247,2]
[346822586,1735306285863,-1837.88,0.00012248,2]
[346822587,1735306285873,-4000.52,0.00012248,2]
[346822588,1735306285883,-4508.39,0.00012248,2]
[346822589,1735306285892,-944.58,0.00012248,2]
[346822590,1735306285902,-3922.68,0.00012248,2]
[346822591,1735306285911,-3189.19,0.00012248,2]
[346822592,1735306285920,-4999.96,0.00012248,2]
[346822593,1735306285930,-5710.83,0.00012248,2]
[346822594,1735306285940,-63931.01,0.00012248,2]
[346822595,1735306285949,-61267.22,0.00012248,2]
[346822596,1735306285960,-6967.22,0.00012248,2]
[346822597,1735306285969,-3888.21,0.00012248,2]
[346822598,1735306285980,-2033.34,0.00012248,2]
[346822599,1735306285989,-5758.05,0.00012248,2]
[346822600,1735306285999,-44342.41,0.00012248,2]
[346822601,1735306286009,-1531.53,0.00012248,2]
[346822602,1735306286019,-500.0,0.00012249,2]
[346822603,1735306286028,-577.55706254,0.00012249,2]
[346822604,1735306286038,-1813.64,0.00012249,2]
[346822605,1735306286047,-500.0,0.00012249,2]
[346822606,1735306286056,-3099.76,0.00012249,2]
[346822607,1735306286068,-10962.93,0.00012249,2]
[346822608,1735306286077,-1377.79,0.00012249,2]
[346822609,1735306286087,-2950.93,0.00012249,2]
[346822610,1735306286097,-3054.53,0.00012249,2]
[346822611,1735306286107,-2338.42,0.00012249,2]
[346822612,1735306286116,-7649.12,0.00012249,2]
[346822613,1735306286126,-6791.44,0.00012249,2]
[346822614,1735306286135,-1081.21874332,0.00012255,2]
[346822615,1735306286145,-153.199044,0.00012313,2]
[346822616,1735306286154,-175.906182,0.00012313,2]
[346822617,1735306286164,-175.906182,0.00012313,2]
[346822618,1735306286174,-182.482872,0.00012313,2]
[346822619,1735306286183,-178.502347,0.00012313,2]
[346822620,1735306286196,-176.714051,0.00012313,2]
[346822621,1735306286206,-1929.36,0.00012328,2]
[346822622,1735306286215,-1929.36,0.00012328,2]
[346822623,1735306286226,-1929.36,0.00012328,2]
[346822624,1735306286236,-1929.36,0.00012328,2]
[346822625,1735306286246,-1929.36,0.00012328,2]
[346822626,1735306286256,-1929.36,0.00012328,2]
[346822627,1735306286268,-1313.81,0.00012328,2]
[346822628,1735306286279,-1313.81,0.00012328,2]
[346822629,1735306286288,-1313.81,0.00012328,2]
[346822630,1735306286299,-1313.81,0.00012328,2]
[346822631,1735306286309,-1313.81,0.00012328,2]
[346822632,1735306286322,-1313.81,0.00012328,2]
[346822633,1735306286332,-151.0,0.00012329,2]
[346822634,1735306286342,-151.0,0.00012329,2]
[346822635,1735306286351,-151.0,0.00012329,2]
[346822636,1735306286361,-151.0,0.00012329,2]
[346822637,1735306286370,-151.0,0.00012329,2]
[346822638,1735306286380,-151.0,0.00012329,2]
[346822639,1735306286389,-151.0,0.00012329,2]
[346822640,1735306286399,-151.0,0.00012329,2]
[346822641,1735306286409,-151.0,0.00012329,2]
[346822642,1735306286418,-151.486018,0.00012329,2]
[346822643,1735306286428,-151.0,0.00012329,2]
[346822644,1735306286438,-151.0,0.00012329,2]
[346822645,1735306286447,-151.0,0.00012329,2]
[346822646,1735306286457,-151.0,0.00012329,2]
[346822647,1735306286466,-151.0,0.00012329,2]
[346822648,1735306286476,-151.0,0.00012329,2]
[346822649,1735306286485,-151.0,0.00012329,2]
[346822650,1735306286495,-151.0,0.00012329,2]
[346822651,1735306286504,-151.0,0.00012329,2]
[346822652,1735306286514,-151.0,0.00012329,2]
[346822653,1735306286523,-295.968046,0.00012329,2]
[346822654,1735306286532,-151.0,0.00012329,2]
[346822655,1735306286542,-151.0,0.00012329,2]
[346822656,1735306286551,-151.0,0.00012329,2]
[346822657,1735306286561,-151.48705,0.00012329,2]
[346822658,1735306286573,-151.0,0.00012329,2]
[346822659,1735306286583,-151.0,0.00012329,2]
[346822660,1735306286592,-151.0,0.00012329,2]
[346822661,1735306286603,-151.0,0.00012329,2]
[346822662,1735306286612,-151.0,0.00012329,2]
[346822663,1735306286621,-151.0,0.00012329,2]
[346822664,1735306286631,-151.0,0.00012329,2]
[346822665,1735306286640,-151.0,0.00012329,2]
[346822666,1735306286650,-200.744046,0.00012329,2]
[346822667,1735306286659,-151.0,0.00012329,2]
[346822668,1735306286669,-151.0,0.00012329,2]
[346822669,1735306286680,-151.0,0.00012329,2]
[346822670,1735306286689,-151.0,0.00012329,2]
[346822671,1735306286699,-151.0,0.00012329,2]
[346822672,1735306286708,-151.0,0.00012329,2]
[346822673,1735306286718,-151.0,0.00012329,2]
[346822674,1735306286727,-151.0,0.00012329,2]
[346822675,1735306286737,-151.0,0.00012329,2]
[346822676,1735306286747,-151.461235,0.00012329,2]
[346822677,1735306286756,-151.0,0.00012329,2]
[346822678,1735306286766,-151.0,0.00012329,2]
[346822679,1735306286775,-151.0,0.00012329,2]
[346822680,1735306286785,-151.0,0.00012329,2]
[346822681,1735306286795,-151.0,0.00012329,2]
[346822682,1735306286804,-151.0,0.00012329,2]
[346822683,1735306286814,-151.676098,0.00012329,2]
[346822684,1735306286829,-151.0,0.00012329,2]
[346822685,1735306286841,-151.0,0.00012329,2]
[346822686,1735306286850,-151.0,0.00012329,2]
[346822687,1735306286859,-151.0,0.00012329,2]
[346822688,1735306286869,-151.0,0.00012329,2]
[346822689,1735306286878,-151.0,0.00012329,2]
[346822690,1735306286888,-245.322834,0.00012329,2]
[346822691,1735306286897,-204.442767,0.00012329,2]
[346822692,1735306286908,-204.442767,0.00012329,2]
[346822693,1735306286918,-204.442767,0.00012329,2]
[346822694,1735306286928,-204.442767,0.00012329,2]
[346822695,1735306286938,-241.739461,0.00012329,2]